lending/lending_fUSD_20260306
["ID","MTS","AMOUNT","RATE_DAILY","PERIOD"]
[407808982,1772814723045,-244.95605789,0.00018521,7]
[407808983,1772814723055,-156.88624525,0.00018521,7]
[407808984,1772814723064,-168.0,0.00018543,2]
[407808985,1772814723074,-5765.52612464,0.00018568,2]
[407808986,1772814723084,-168.0,0.00018608,2]
[407808987,1772814723094,-1000.0,0.00018701,2]
[407808988,1772814723103,-175.99798466,0.00018721,2]
[407808989,1772814723113,-1255.08996213,0.00018748,7]
[407808990,1772814723123,-1126.22133167,0.00018805,2]
[407808991,1772814723133,-17136.316285,0.00018888,7]
[407808992,1772814723143,-172.74325605,0.0001889,7]
[407808993,1772814723152,-168.0,0.00018918,2]
[407808994,1772814723162,-1600.0,0.00018943,2]
[407808995,1772814723171,-167.0,0.00019,2]
[407808996,1772814723180,-293.43158057,0.00019,2]
[407808997,1772814723190,-223.27,0.00019036,2]
[407808998,1772814723200,-780.83,0.00019049,2]
[407808999,1772814723210,-1255.08996213,0.0001905,7]
[407809000,1772814723220,-876.76,0.00019061,2]
[407809001,1772814723231,-168.0,0.00019155,2]
[407809002,1772814723240,-168.0,0.00019179,2]
[407809003,1772814723251,-168.0,0.00019207,2]
[407809004,1772814723261,-5765.52612464,0.00019234,2]
[407809005,1772814723271,-780.83,0.00019323,2]
[407809006,1772814723281,-876.76,0.00019335,2]
[407809007,1772814723290,-299.99,0.00019339,7]
[407809008,1772814723300,-1869.35,0.00019339,2]
[407809009,1772814723310,-19849.18,0.00019339,2]
[407809010,1772814723319,-150.99,0.00019339,2]
[407809011,1772814723330,-150.99,0.00019339,2]
[407809012,1772814723340,-9999.99,0.00019339,2]
[407809013,1772814723352,-1255.08996213,0.00019352,7]
[407809014,1772814723362,-168.0,0.00019365,2]
[407809015,1772814723372,-2000.0,0.000195,2]
[407809016,1772814723382,-244.95605789,0.00019571,7]
[407809017,1772814723392,-780.83,0.00019597,2]
[407809018,1772814723402,-172.74325605,0.00019605,2]
[407809019,1772814723411,-160.0,0.00019605,2]
[407809020,1772814723420,-876.76,0.00019609,2]
[407809021,1772814723430,-151.04766822,0.00019612,5]
[407809022,1772814723439,-1255.08996213,0.00019654,7]
[407809023,1772814723449,-450.87,0.00019669,2]
[407809024,1772814723460,-144171.41743772,0.0001981,2]
[407809025,1772814723471,-855.89,0.00019871,2]
[407809026,1772814723481,-184.94185274,0.00019873,2]
[407809027,1772814723490,-150.0,0.00019873,2]
[407809028,1772814723499,-876.76,0.00019883,2]
[407809029,1772814723509,-162.43547835,0.000199,2]
[407809030,1772814723519,-230.20999899,0.000199,7]
[407809031,1772814723528,-5765.52612464,0.000199,2]
[407809032,1772814723539,-194.61997351,0.000199,2]
[407809033,1772814723549,-175.99798466,0.000199,2]
[407809034,1772814723558,-228.86981007,0.00019926,2]
[407809035,1772814723570,-1255.08996213,0.00019956,7]
[407809036,1772814723580,-500.0,0.0001997,2]
[407809037,1772814723590,-500.0,0.0001997,2]
[407809038,1772814723600,-706.32382314,0.0001997,2]
[407809039,1772814723610,-1000.0,0.0001997,2]
[407809040,1772814723621,-1000.0,0.0001997,2]
[407809041,1772814723631,-1532.047401,0.0001997,2]
[407809042,1772814723642,-500.0,0.00019973,2]
[407809043,1772814723655,-150.0,0.00019973,2]
[407809044,1772814723666,-534.41020395,0.0001998,2]
[407809045,1772814723676,-150.0,0.00019999,2]
[407809046,1772814723685,-263.76858852,0.00019999,2]
[407809047,1772814723695,-573.31615994,0.0002,7]
[407809048,1772814723709,-4291207.21627755,0.0002,2]
[407809049,1772814723719,-132261.11230833,0.0002,2]
[407809050,1772814723732,-2953.57487299,0.0002,7]
[407809051,1772814723742,-532.21530917,0.0002,7]
[407809052,1772814723752,-12979.23134695,0.0002,2]
[407809053,1772814723762,-302.13828363,0.0002,2]
[407809054,1772814723771,-301.26432731,0.0002,5]
[407809055,1772814723780,-1573.21,0.0002,7]
[407809056,1772814723790,-700.0,0.0002,14]
[407809057,1772814723800,-1271.59435,0.0002,2]
[407809058,1772814723809,-150.0,0.0002,20]
[407809059,1772814723818,-825.0,0.0002,30]
[407809060,1772814723828,-168.0,0.00020086,2]
[407809061,1772814723837,-168.0,0.00020105,2]
[407809062,1772814723846,-200.0,0.00020106,2]
[407809063,1772814723856,-168.0,0.00020142,2]
[407809064,1772814723866,-9999.99,0.00020145,2]
[407809065,1772814723875,-391.53,0.00020157,2]
[407809066,1772814723885,-168.0,0.00020169,2]
[407809067,1772814723897,-1255.08996213,0.00020258,7]
[407809068,1772814723906,-500.0,0.00020345,2]
[407809069,1772814723915,-168.0,0.00020356,2]
[407809070,1772814723925,-168.0,0.00020381,2]
[407809071,1772814723934,-168.0,0.00020403,2]
[407809072,1772814723943,-250.0,0.00020421,2]
[407809073,1772814723953,-1126.22133167,0.0002044,2]
[407809074,1772814723962,-168.0,0.00020457,2]
[407809075,1772814723971,-168.0,0.00020497,2]
[407809076,1772814723981,-168.0,0.00020509,2]
[407809077,1772814723991,-1000.0,0.00020521,2]
[407809078,1772814724001,-250.0,0.00020521,2]
[407809079,1772814724010,-156.71,0.00020548,2]
[407809080,1772814724021,-1255.08996213,0.00020559,7]
[407809081,1772814724032,-244.95605789,0.00020622,7]
[407809082,1772814724041,-156.88624525,0.00020622,7]
[407809083,1772814724050,-56418.620783,0.00020629,2]
[407809084,1772814724061,-844.0,0.00020635,2]
[407809085,1772814724070,-168.0,0.00020761,2]
[407809086,1772814724080,-1000.0,0.00020768,2]
[407809087,1772814724091,-1000.0,0.00020768,2]
[407809088,1772814724100,-1000.0,0.00020768,2]
[407809089,1772814724110,-1000.0,0.00020768,2]
[407809090,1772814724121,-609.02156601,0.00020768,2]
[407809091,1772814724133,-578.20924308,0.00020768,2]
[407809092,1772814724143,-3000.0,0.00020768,2]
[407809093,1772814724152,-3000.0,0.00020768,2]
[407809094,1772814724162,-3000.0,0.00020768,2]
[407809095,1772814724172,-3000.0,0.00020768,2]
[407809096,1772814724182,-3000.0,0.00020768,2]
[407809097,1772814724192,-3000.0,0.00020768,2]
[407809098,1772814724203,-3000.0,0.00020768,2]
[407809099,1772814724213,-3000.0,0.00020768,2]
[407809100,1772814724225,-3000.0,0.00020768,2]
[407809101,1772814724237,-1000.0,0.00020768,2]
[407809102,1772814724248,-151.0,0.00020768,2]
[407809103,1772814724258,-3000.0,0.00020768,2]
[407809104,1772814724267,-3000.0,0.00020768,2]
[407809105,1772814724277,-503.01170887,0.00020768,2]
[407809106,1772814724532,-1000.0,0.00020768,2]
[407809107,1772814724542,-1000.0,0.00020768,2]
[407809108,1772814724552,-1000.0,0.00020768,2]
[407809109,1772814724562,-1000.0,0.00020768,2]
[407809110,1772814724572,-1000.0,0.00020768,2]
[407809111,1772814724582,-1000.0,0.00020768,2]
[407809112,1772814724591,-1000.0,0.00020768,2]
[407809113,1772814724601,-1000.0,0.00020768,2]
[407809114,1772814724611,-938.21883186,0.00020768,2]
[407809115,1772814724621,-209.40437684,0.00020768,2]
[407809116,1772814724630,-262.90206542,0.00020768,2]
[407809117,1772814724640,-3000.0,0.00020768,2]
[407809118,1772814724652,-3000.0,0.00020768,2]
[407809119,1772814724665,-3000.0,0.00020768,2]
[407809120,1772814724675,-250.0,0.00020768,2]
[407809121,1772814724685,-3000.0,0.00020768,2]
[407809122,1772814724694,-250.0,0.00020768,2]
[407809123,1772814724706,-3000.0,0.00020768,2]
[407809124,1772814724715,-250.0,0.00020768,2]
[407809125,1772814724724,-3000.0,0.00020768,2]
[407809126,1772814724735,-3000.0,0.00020768,2]
[407809127,1772814724744,-3000.0,0.00020768,2]
[407809128,1772814724754,-3000.0,0.00020768,2]
[407809129,1772814724763,-3000.0,0.00020768,2]
[407809130,1772814724772,-151.0,0.00020768,2]
[407809131,1772814724782,-269.917619,0.00020768,2]
[407809132,1772814724791,-3000.0,0.00020768,2]
[407809133,1772814724802,-743.50770149,0.00020768,2]
[407809134,1772814724811,-1000.0,0.00020779,2]
[407809135,1772814724820,-168.0,0.0002078,2]
[407809136,1772814724830,-168.0,0.00020805,2]
[407809137,1772814724840,-151.0,0.00020823,2]
[407809138,1772814724850,-1255.08996213,0.00020861,14]
[407809139,1772814724859,-151.0,0.00020878,2]
[407809140,1772814724869,-9138.69721681,0.000209,30]
[407809141,1772814724879,-151.0,0.00020933,2]
[407809142,1772814724888,-544.2,0.00020946,2]
[407809143,1772814724900,-500.0,0.00020955,2]
[407809144,1772814724909,-350.0,0.00020968,2]
[407809145,1772814724919,-151.0,0.00020988,2]
[407809146,1772814724928,-2629.66672288,0.00021,7]
[407809147,1772814724938,-160.0,0.00021,7]
[407809148,1772814724947,-400.0,0.00021,2]
[407809149,1772814724957,-7643.377,0.00021,2]
[407809150,1772814724967,-450.87,0.00021039,2]
[407809151,1772814724977,-151.0,0.00021043,2]
[407809152,1772814724986,-4221.18,0.00021068,2]
[407809153,1772814724996,-1500.0,0.00021068,2]
[407809154,1772814725006,-350.0,0.00021068,2]
[407809155,1772814725016,-151.0,0.00021098,2]
[407809156,1772814725026,-150.0,0.0002112,30]
[407809157,1772814725036,-182.0,0.0002112,30]
[407809158,1772814725047,-151.0,0.00021153,2]
[407809159,1772814725057,-1255.08996213,0.00021163,14]
[407809160,1772814725066,-151.0,0.00021208,2]
[407809161,1772814725075,-151.0,0.00021263,2]
[407809162,1772814725085,-217.15233878,0.00021316,2]
[407809163,1772814725095,-272.62944185,0.00021316,2]
[407809164,1772814725105,-151.0,0.00021316,2]
[407809165,1772814725115,-279.9045709,0.00021316,2]
[407809166,1772814725125,-771.01748645,0.00021316,2]
[407809167,1772814725135,-151.0,0.00021318,2]
[407809168,1772814725146,-2000.0,0.00021337,2]
[407809169,1772814725155,-2000.0,0.00021337,2]
[407809170,1772814725166,-2000.0,0.00021337,2]
[407809171,1772814725177,-2000.0,0.00021337,2]
[407809172,1772814725188,-2000.0,0.00021337,2]
[407809173,1772814725198,-2000.0,0.00021337,2]
[407809174,1772814725208,-2000.0,0.00021337,2]
[407809175,1772814725218,-2000.0,0.00021337,2]
[407809176,1772814725228,-2000.0,0.00021337,2]
[407809177,1772814725238,-2000.0,0.00021337,2]
[407809178,1772814725248,-2000.0,0.00021337,2]
[407809179,1772814725259,-2000.0,0.00021337,2]
[407809180,1772814725270,-2000.0,0.00021337,2]
[407809181,1772814725279,-552.0,0.0002134,2]
[407809182,1772814725289,-150.0,0.0002134,2]
[407809183,1772814725299,-150.0,0.0002134,2]
[407809184,1772814725310,-279.0,0.0002134,2]
[407809185,1772814725320,-350.0,0.0002134,2]
[407809186,1772814725330,-350.0,0.0002134,2]
[407809187,1772814725341,-350.0,0.0002134,2]
[407809188,1772814725351,-350.0,0.0002134,2]
[407809189,1772814725362,-350.0,0.0002134,2]
[407809190,1772814725372,-350.0,0.0002134,2]
[407809191,1772814725382,-350.0,0.0002134,2]
[407809192,1772814725393,-350.0,0.0002134,2]
[407809193,1772814725404,-399.0,0.0002134,2]
[407809194,1772814725414,-500.0,0.00021348,2]
[407809195,1772814725424,-151.0,0.00021373,2]
[407809196,1772814725434,-151.0,0.00021428,2]
[407809197,1772814725444,-1255.08996213,0.00021465,14]
[407809198,1772814725454,-151.0,0.00021483,2]
[407809199,1772814725464,-346.42,0.00021494,2]
[407809200,1772814725474,-57834.94137492,0.000215,2]
[407809201,1772814725485,-450.0,0.00021516,2]
[407809202,1772814725495,-151.0,0.00021538,2]
[407809203,1772814725505,-150.0,0.0002157,30]
[407809204,1772814725515,-162.0,0.0002157,30]
[407809205,1772814725525,-2000.0,0.00021584,2]
[407809206,1772814725535,-2000.0,0.00021584,2]
[407809207,1772814725545,-2000.0,0.00021584,2]
[407809208,1772814725555,-2000.0,0.00021584,2]
[407809209,1772814725564,-2000.0,0.00021584,2]
[407809210,1772814725573,-2000.0,0.00021584,2]
[407809211,1772814725584,-2000.0,0.00021584,2]
[407809212,1772814725595,-2000.0,0.00021584,2]
[407809213,1772814725605,-2000.0,0.00021584,2]
[407809214,1772814725614,-2000.0,0.00021584,2]
[407809215,1772814725624,-2000.0,0.00021584,2]
[407809216,1772814725634,-2000.0,0.00021584,2]
[407809217,1772814725645,-2000.0,0.00021584,2]
[407809218,1772814725655,-2000.0,0.00021584,2]
[407809219,1772814725670,-2000.0,0.00021584,2]
[407809220,1772814725680,-2000.0,0.00021584,2]
[407809221,1772814725691,-2000.0,0.00021584,2]
[407809222,1772814725703,-2000.0,0.00021584,2]
[407809223,1772814725712,-2000.0,0.00021584,2]
[407809224,1772814725723,-2000.0,0.00021584,2]
[407809225,1772814725736,-2000.0,0.00021584,2]
[407809226,1772814725746,-2000.0,0.00021584,2]
[407809227,1772814725756,-2000.0,0.00021584,2]
[407809228,1772814725766,-2000.0,0.00021584,2]
[407809229,1772814725776,-2000.0,0.00021584,2]
[407809230,1772814725787,-2000.0,0.00021584,2]
[407809231,1772814725797,-2000.0,0.00021584,2]
[407809232,1772814725807,-2000.0,0.00021584,2]
[407809233,1772814725818,-500.0,0.00021584,2]
[407809234,1772814725828,-151.0,0.00021593,2]
[407809235,1772814725837,-2000.0,0.00021616,2]
[407809236,1772814725848,-450.0,0.00021616,2]
[407809237,1772814725858,-151.0,0.00021648,2]
[407809238,1772814725869,-244.95605789,0.00021672,14]
[407809239,1772814725879,-4179.0,0.00021762,2]
[407809240,1772814725889,-4830.0,0.00021762,2]
[407809241,1772814725899,-1255.08996213,0.00021767,14]
[407809242,1772814725909,-2000.0,0.00021795,2]
[407809243,1772814725918,-2000.0,0.00021795,2]
[407809244,1772814725929,-2000.0,0.00021795,2]
[407809245,1772814725939,-2000.0,0.00021795,2]
[407809246,1772814725950,-2000.0,0.00021795,2]
[407809247,1772814725961,-2000.0,0.00021795,2]
[407809248,1772814725973,-2000.0,0.00021795,2]
[407809249,1772814725986,-2000.0,0.00021795,2]
[407809250,1772814725999,-2000.0,0.00021795,2]
[407809251,1772814726009,-2000.0,0.00021795,2]
[407809252,1772814726019,-2000.0,0.00021795,2]
[407809253,1772814726030,-2000.0,0.00021795,2]
[407809254,1772814726040,-2000.0,0.00021795,2]
[407809255,1772814726049,-2000.0,0.00021795,2]
[407809256,1772814726059,-2000.0,0.00021795,2]
[407809257,1772814726069,-2000.0,0.00021795,2]
[407809258,1772814726080,-2000.0,0.00021795,2]
[407809259,1772814726090,-2000.0,0.00021795,2]
[407809260,1772814726101,-2000.0,0.00021795,2]
[407809261,1772814726111,-2000.0,0.00021795,2]
[407809262,1772814726121,-2000.0,0.00021795,2]
[407809263,1772814726132,-2000.0,0.00021795,2]
[407809264,1772814726141,-2000.0,0.00021795,2]
[407809265,1772814726151,-2000.0,0.00021795,2]
[407809266,1772814726161,-2000.0,0.00021795,2]
[407809267,1772814726171,-2000.0,0.00021795,2]
[407809268,1772814726181,-2000.0,0.00021795,2]
[407809269,1772814726191,-2000.0,0.00021795,2]
[407809270,1772814726200,-2000.0,0.00021795,2]
[407809271,1772814726211,-2000.0,0.00021795,2]
[407809272,1772814726221,-2000.0,0.00021795,2]
[407809273,1772814726232,-2000.0,0.00021795,2]
[407809274,1772814726245,-2000.0,0.00021795,2]
[407809275,1772814726255,-2000.0,0.00021795,2]
[407809276,1772814726265,-2000.0,0.00021795,2]
[407809277,1772814726275,-2000.0,0.00021795,2]
[407809278,1772814726285,-2000.0,0.00021795,2]
[407809279,1772814726295,-225.18697532,0.00021864,2]
[407809280,1772814726304,-282.71673119,0.00021864,2]
[407809281,1772814726315,-151.0,0.00021864,2]
[407809282,1772814726326,-290.26104003,0.00021864,2]
[407809283,1772814726337,-901.40720685,0.00021864,2]
[407809284,1772814726348,-5000.0,0.00021918,2]
[407809285,1772814726358,-3049.21,0.00021918,2]
[407809286,1772814726368,-500.0,0.00021918,2]
[407809287,1772814726378,-205.16,0.00021939,2]
[407809288,1772814726389,-500.0,0.00021999,2]
[407809289,1772814726399,-160.0,0.00022,30]
[407809290,1772814726410,-371837.52203362,0.00022,4]
[407809291,1772814726420,-803.64442162,0.00022,7]
[407809292,1772814726430,-550.0,0.00022064,2]
[407809293,1772814726441,-1255.08996213,0.00022069,14]
[407809294,1772814726451,-1126.22133167,0.00022075,2]
[407809295,1772814726461,-1135.69,0.00022114,30]
[407809296,1772814726471,-1680.57628362,0.00022164,2]
[407809297,1772814726483,-550.0,0.00022164,2]
[407809298,1772814726494,-200.0,0.00022172,4]
[407809299,1772814726504,-153.62,0.00022192,2]
[407809300,1772814726513,-153.62,0.00022192,30]
[407809301,1772814726523,-660.44,0.00022192,2]
[407809302,1772814726534,-660.44,0.00022192,30]
[407809303,1772814726543,-500.0,0.00022231,2]
[407809304,1772814726552,-207.0,0.00022272,30]
[407809305,1772814726563,-154.38,0.00022279,2]
[407809306,1772814726573,-1255.08996213,0.00022371,14]
[407809307,1772814726584,-460.50781113,0.00022406,2]
[407809308,1772814726595,-180.0,0.0002241,30]
[407809309,1772814726605,-233.51889341,0.00022412,2]
[407809310,1772814726615,-293.17725025,0.00022412,2]
[407809311,1772814726626,-151.0,0.00022412,2]
[407809312,1772814726637,-259.56114987,0.00022412,2]
[407809313,1772814726647,-825.0,0.00022475,30]
[407809314,1772814726660,-650.0,0.00022612,2]
[407809315,1772814726671,-1255.08996213,0.00022673,14]
[407809316,1772814726680,-346.42,0.00022688,2]
[407809317,1772814726691,-401.79985854,0.00022712,2]
[407809318,1772814726703,-244.95605789,0.00022722,14]
[407809319,1772814726714,-156.88624525,0.00022722,14]
[407809320,1772814726724,-4932.11,0.0002274,2]
[407809321,1772814726736,-1000.0,0.00022857,2]
[407809322,1772814726745,-500.0,0.00022898,2]
[407809323,1772814726756,-242.15909246,0.0002296,2]
[407809324,1772814726765,-449.95423011,0.0002296,2]
[407809325,1772814726775,-151.0,0.0002296,2]
[407809326,1772814726786,-1255.08996213,0.00022974,14]
[407809327,1772814726795,-545.70387116,0.00022999,2]
[407809328,1772814726804,-763.82206662,0.00023,2]
[407809329,1772814726814,-640.64716498,0.00023,7]
[407809330,1772814726824,-1000.0,0.00023,14]
[407809331,1772814726834,-305398.22480505,0.00023,2]
[407809332,1772814726843,-2122.53781242,0.00023,2]
[407809333,1772814726853,-175.0,0.000231,7]
[407809334,1772814726863,-150.0,0.000231,7]
[407809335,1772814726873,-150.0,0.000231,7]
[407809336,1772814726883,-150.0,0.000231,7]
[407809337,1772814726892,-150.0,0.000231,7]
[407809338,1772814726903,-167.0,0.000231,7]
[407809339,1772814726912,-350.0,0.00023102,30]
[407809340,1772814726922,-350.0,0.00023102,30]
[407809341,1772814726931,-223.0,0.00023102,30]
[407809342,1772814726942,-750.0,0.0002316,2]
[407809343,1772814726951,-370.01406447,0.00023171,30]
[407809344,1772814726961,-2745.79,0.00023172,2]
[407809345,1772814726970,-278.0,0.00023179,30]
[407809346,1772814726979,-2000.0,0.000232,2]
[407809347,1772814726989,-1255.08996213,0.00023276,14]
[407809348,1772814726999,-1500.0,0.00023288,2]
[407809349,1772814727105,-1000.0,0.00023288,2]
[407809350,1772814727116,-307.88,0.00023446,9]
[407809351,1772814727126,-599.60298507,0.00023507,2]
[407809352,1772814727135,-1000.0,0.00023507,2]
[407809353,1772814727144,-251.11897888,0.00023508,2]
[407809354,1772814727155,-151.0,0.00023508,2]
[407809355,1772814727164,-12588.6958906,0.00023515,2]
[407809356,1772814727176,-1255.08996213,0.00023578,14]
[407809357,1772814727185,-270.08634337,0.00023585,2]
[407809358,1772814727195,-150.0,0.00023592,7]
[407809359,1772814727206,-150.0,0.00023592,7]
[407809360,1772814727216,-150.0,0.00023592,7]
[407809361,1772814727226,-272.0,0.00023592,7]
[407809362,1772814727235,-150.0,0.00023609,14]
[407809363,1772814727245,-3000.0,0.0002368,2]
[407809364,1772814727254,-3000.0,0.0002368,2]
[407809365,1772814727264,-3000.0,0.0002368,2]
[407809366,1772814727275,-3000.0,0.0002368,2]
[407809367,1772814727285,-3000.0,0.0002368,2]
[407809368,1772814727293,-3000.0,0.0002368,2]
[407809369,1772814727302,-3000.0,0.0002368,2]
[407809370,1772814727311,-3000.0,0.0002368,2]
[407809371,1772814727320,-3000.0,0.0002368,2]
[407809372,1772814727330,-3000.0,0.0002368,2]
[407809373,1772814727339,-3000.0,0.0002368,2]
[407809374,1772814727348,-500.0,0.0002368,2]
[407809375,1772814727357,-500.0,0.0002368,2]
[407809376,1772814727366,-500.0,0.0002368,2]
[407809377,1772814727375,-500.0,0.0002368,2]
[407809378,1772814727384,-500.0,0.0002368,2]
[407809379,1772814727394,-500.0,0.0002368,2]
[407809380,1772814727405,-500.0,0.0002368,2]
[407809381,1772814727414,-500.0,0.0002368,2]
[407809382,1772814727423,-500.0,0.0002368,2]
[407809383,1772814727432,-500.0,0.0002368,2]
[407809384,1772814727441,-500.0,0.0002368,2]
[407809385,1772814727451,-910.7092941,0.00023708,2]
[407809386,1772814727460,-1126.22133167,0.0002371,2]
[407809387,1772814727470,-244.95605789,0.00023773,14]
[407809388,1772814727479,-847.0,0.0002383,3]
[407809389,1772814727488,-37020.721744,0.00023864,30]
[407809390,1772814727497,-1255.08996213,0.0002388,30]
[407809391,1772814727507,-346.42,0.00023882,2]
[407809392,1772814727517,-160.0,0.00024,30]
[407809393,1772814727526,-1000.0,0.00024005,2]
[407809394,1772814727535,-194.25670622,0.00024056,2]
[407809395,1772814727545,-151.0,0.00024056,2]
[407809396,1772814727554,-500.0,0.00024082,2]
[407809397,1772814727564,-1000.0,0.00024119,2]
[407809398,1772814727573,-200.0,0.00024126,2]
[407809399,1772814727583,-2808.9177301,0.0002416,2]
[407809400,1772814727592,-1255.08996213,0.00024182,30]
[407809401,1772814727601,-150.0,0.0002436,7]
[407809402,1772814727610,-150.0,0.0002436,7]
[407809403,1772814727619,-178.0,0.0002436,7]
[407809404,1772814727629,-1255.08996213,0.00024484,30]
[407809405,1772814727638,-543.231691,0.000245,2]
[407809406,1772814727648,-151.0,0.00024604,2]
[407809407,1772814727659,-2000.0,0.00024657,2]
[407809408,1772814727670,-1500.0,0.00024658,2]
[407809409,1772814727680,-1000.0,0.00024658,2]
[407809410,1772814727690,-150.0,0.00024658,2]
[407809411,1772814727699,-2803.0,0.00024688,3]
[407809412,1772814727711,-150.0,0.00024715,2]
[407809413,1772814727720,-153.0,0.0002475,14]
[407809414,1772814727730,-150.0,0.0002475,14]
[407809415,1772814727740,-150.0,0.0002475,14]
[407809416,1772814727749,-150.0,0.0002475,14]
[407809417,1772814727758,-221.0,0.0002475,14]
[407809418,1772814727768,-291.0,0.0002475,30]
[407809419,1772814727778,-2803.0,0.00024767,3]
[407809420,1772814727788,-1255.08996213,0.00024786,30]
[407809421,1772814727797,-151.0,0.00024798,2]
[407809422,1772814727807,-151.0,0.00024798,2]
[407809423,1772814727816,-1515.0,0.00024798,2]
[407809424,1772814727826,-151.0,0.00024798,2]
[407809425,1772814727835,-864.0,0.00024798,2]
[407809426,1772814727845,-1515.0,0.00024798,2]
[407809427,1772814727854,-151.0,0.00024798,2]
[407809428,1772814727863,-864.0,0.00024798,2]
[407809429,1772814727872,-151.0,0.00024798,2]
[407809430,1772814727882,-151.0,0.00024798,2]
[407809431,1772814727891,-1515.0,0.00024798,2]
[407809432,1772814727902,-1515.0,0.00024798,2]
[407809433,1772814727912,-1515.0,0.00024798,2]
[407809434,1772814727921,-1515.0,0.00024798,2]
[407809435,1772814727930,-1515.0,0.00024798,2]
[407809436,1772814727939,-152.0,0.00024798,2]
[407809437,1772814727949,-152.0,0.00024798,2]
[407809438,1772814727958,-1515.0,0.00024798,2]
[407809439,1772814727967,-152.0,0.00024798,2]
[407809440,1772814727976,-1515.0,0.00024798,2]
[407809441,1772814727985,-151.0,0.00024798,2]
[407809442,1772814727995,-151.0,0.00024798,2]
[407809443,1772814728005,-151.0,0.00024798,2]
[407809444,1772814728015,-151.0,0.00024798,2]
[407809445,1772814728024,-151.0,0.00024798,2]
[407809446,1772814728034,-151.0,0.00024798,2]
[407809447,1772814728044,-151.0,0.00024798,2]
[407809448,1772814728053,-151.0,0.00024798,2]
[407809449,1772814728062,-1515.0,0.00024798,2]
[407809450,1772814728071,-1515.0,0.00024798,2]
[407809451,1772814728081,-1515.0,0.00024798,2]
[407809452,1772814728090,-1515.0,0.00024798,2]
[407809453,1772814728099,-1515.0,0.00024798,2]
[407809454,1772814728107,-1515.0,0.00024798,2]
[407809455,1772814728116,-1515.0,0.00024798,2]
[407809456,1772814728125,-1515.0,0.00024798,2]
[407809457,1772814728134,-1515.0,0.00024798,2]
[407809458,1772814728143,-1515.0,0.00024798,2]
[407809459,1772814728153,-1515.0,0.00024798,2]
[407809460,1772814728162,-1515.0,0.00024798,2]
[407809461,1772814728172,-1515.0,0.00024798,2]
[407809462,1772814728181,-1515.0,0.00024798,2]
[407809463,1772814728191,-1515.0,0.00024798,2]
[407809464,1772814728200,-1515.0,0.00024798,2]
[407809465,1772814728210,-1515.0,0.00024798,2]
[407809466,1772814728221,-1515.0,0.00024798,2]
[407809467,1772814728231,-1515.0,0.00024798,2]
[407809468,1772814728241,-1515.0,0.00024798,2]
[407809469,1772814728251,-1515.0,0.00024798,2]
[407809470,1772814728260,-1515.0,0.00024798,2]
[407809471,1772814728270,-1515.0,0.00024798,2]
[407809472,1772814728280,-1515.0,0.00024798,2]
[407809473,1772814728290,-1515.0,0.00024798,2]
[407809474,1772814728299,-1515.0,0.00024798,2]
[407809475,1772814728309,-1515.0,0.00024798,2]
[407809476,1772814728320,-1515.0,0.00024798,2]
[407809477,1772814728329,-152.0,0.00024798,2]
[407809478,1772814728340,-244.95605789,0.00024823,30]
[407809479,1772814728349,-156.88624525,0.00024823,30]
[407809480,1772814728358,-201.4447622,0.00024833,2]
[407809481,1772814728368,-150.0,0.00024852,30]